[Event "44th Chess Olympiad Women 2022"]
[Site "Chennai"]
[Date "2022.07.31"]
[Round "3.10"]
[White "Chumpitaz, Ann"]
[Black "Balabayeva, Xeniya"]
[Result "0-1"]
[WhiteElo "2278"]
[BlackElo "2198"]
[Annotator "RC"]
[PlyCount "70"]
[EventDate "2022.??.??"]
[TimeControl "60"]

1. d4 {[%emt 0:02:09]} d5 {[%emt 0:00:18]} 2. Bf4 {[%emt 0:00:06]} Nf6 {
[%emt 0:00:15]} 3. e3 {[%emt 0:00:08]} c5 {[%emt 0:01:31]} 4. Nf3 {[%emt 0:00:
00]} Nc6 {[%emt 0:00:20]} 5. Nbd2 {[%emt 0:00:28]} e6 {[%emt 0:02:58]} 6. c3 {
[%emt 0:00:58]} Nh5 {[%emt 0:01:28]} 7. Be5 {[%emt 0:01:14]} f6 {[%emt 0:05:37]
} 8. Nh4 {[%emt 0:31:09]} g6 {[%emt 0:08:07]} 9. Bg3 {[%emt 0:02:04]} Be7 {
[%emt 0:11:26]} 10. Be2 {[%emt 0:03:22]} Ng7 {[%emt 0:02:25]} 11. Qc2 {[%emt 0:
00:00]} cxd4 {[%emt 0:12:39]} 12. exd4 {[%emt 0:01:54]} Kf7 {[%emt 0:04:13]}
13. O-O {[%emt 0:03:40]} g5 {[%emt 0:04:53]} 14. Nhf3 {[%emt 0:03:44]} h5 {
[%emt 0:01:02]} 15. h3 {[%emt 0:09:55]} g4 {[%emt 0:13:40]} 16. hxg4 {[%emt 0:
00:00]} hxg4 {[%emt 0:00:07]} 17. Nh2 {[%emt 0:00:03]} f5 {[%emt 0:01:38]} 18.
Qd3 {[%emt 0:04:57]} Nh5 {[%emt 0:13:21]} 19. Bxg4 {[%emt 0:00:17]} fxg4 {
[%emt 0:00:44]} 20. Nxg4 {[%emt 0:00:04]} Qg8 {[%emt 0:02:00]} 21. Be5 {
[%emt 0:06:41]} Bf6 {[%emt 0:04:02]} 22. Qf3 {[%emt 0:01:46]} Qg5 {[%emt 0:00:
00]} 23. Rfe1 {[%emt 0:01:02]} Bd7 {[%emt 0:02:27]} 24. Re3 {[%emt 0:04:32]}
Rag8 {[%emt 0:01:46]} 25. Bxf6 {[%emt 0:00:00]} Nxf6 {[%emt 0:00:06]} 26. Ne5+
{[%emt 0:00:00]} Ke7 {[%emt 0:00:10]} 27. Nxd7 {[%emt 0:05:25]} Kxd7 {[%emt 0:
00:00]} 28. Rae1 {[%emt 0:00:22]} Nd8 {[%emt 0:02:04]} 29. c4 {[%emt 0:10:12]}
Qh6 {[%emt 0:01:47]} 30. Kf1 {[%emt 0:00:43]} Ng4 {[%emt 0:00:25]} 31. Ke2 {
[%emt 0:04:25]} Nxe3 {[%emt 0:00:07]} 32. fxe3 {[%emt 0:00:32]} Qh2 {[%emt 0:
00:00]} 33. cxd5 {[%emt 0:00:26]} Rxg2+ {[%emt 0:00:14]} 34. Kd3 {[%emt 0:00:
00]} Rxd2+ {[%emt 0:00:06]} 35. Kc3 {[%emt 0:00:32]} Rc2+ {[%emt 0:00:10]} 0-1

[Event "44th Chess Olympiad Women 2022"]
[Site "Chennai"]
[Date "2022.07.31"]
[Round "3.10"]
[White "Nakhbayeva, Guliskhan"]
[Black "Caballero Quijano, Mitzy Mishell"]
[Result "1-0"]
[WhiteElo "2329"]
[BlackElo "2035"]
[Annotator "RC"]
[PlyCount "105"]
[EventDate "2022.??.??"]
[TimeControl "60"]

1. d4 {[%emt 0:00:03]} e6 {[%emt 0:01:29]} 2. c4 {[%emt 0:00:05]} Nf6 {[%emt 0:
00:00]} 3. Nc3 {[%emt 0:00:10]} Bb4 {[%emt 0:00:24]} 4. e3 {[%emt 0:00:08]} c5
{[%emt 0:00:13]} 5. Bd3 {[%emt 0:00:46]} Nc6 {[%emt 0:00:31]} 6. Nf3 {[%emt 0:
00:00]} Bxc3+ {[%emt 0:00:11]} 7. bxc3 {[%emt 0:00:04]} d6 {[%emt 0:00:09]} 8.
e4 {[%emt 0:04:42]} e5 {[%emt 0:00:15]} 9. d5 {[%emt 0:00:08]} Ne7 {[%emt 0:00:
00]} 10. Bg5 {[%emt 0:04:09]} Ng6 {[%emt 0:00:14]} 11. Nh4 {[%emt 0:00:24]} h6
{[%emt 0:06:45]} 12. Nxg6 {[%emt 0:00:29]} fxg6 {[%emt 0:00:06]} 13. Bd2 {
[%emt 0:02:55]} O-O {[%emt 0:00:44]} 14. O-O {[%emt 0:01:07]} Nh5 {[%emt 0:00:
00]} 15. Re1 {[%emt 0:14:27]} Qh4 {[%emt 0:08:21]} 16. g3 {[%emt 0:09:42]} Qf6
{[%emt 0:07:45]} 17. Be3 {[%emt 0:02:44]} Qf7 {[%emt 0:01:15]} 18. Kg2 {
[%emt 0:12:11]} g5 {[%emt 0:16:54]} 19. Be2 {[%emt 0:04:31]} Nf6 {[%emt 0:00:
00]} 20. f3 {[%emt 0:00:12]} g4 {[%emt 0:07:19]} 21. f4 {[%emt 0:09:05]} Nxe4 {
[%emt 0:16:18]} 22. fxe5 {[%emt 0:01:45]} dxe5 {[%emt 0:02:07]} 23. Rf1 {
[%emt 0:06:59]} Qh5 {[%emt 0:05:34]} 24. Rxf8+ {[%emt 0:00:21]} Kxf8 {[%emt 0:
00:00]} 25. Qc2 {[%emt 0:07:02]} Qh3+ {[%emt 0:07:48]} 26. Kg1 {[%emt 0:00:14]}
Nxg3 {[%emt 0:01:27]} 27. Bxc5+ {[%emt 0:00:15]} Kg8 {[%emt 0:00:01]} 28. hxg3
{[%emt 0:05:43]} Qxg3+ {[%emt 0:00:07]} 29. Kf1 {[%emt 0:00:01]} Qf4+ {[%emt 0:
00:00]} 30. Ke1 {[%emt 0:01:01]} Bf5 {[%emt 0:01:15]} 31. Qc1 {[%emt 0:01:05]}
b6 {[%emt 0:09:35]} 32. Be3 {[%emt 0:00:46]} Qe4 {[%emt 0:00:29]} 33. Bg1 {
[%emt 0:06:50]} g5 {[%emt 0:02:33]} 34. Qe3 {[%emt 0:00:26]} Qf4 {[%emt 0:00:
00]} 35. Kd2 {[%emt 0:00:43]} Kg7 {[%emt 0:00:17]} 36. Rf1 {[%emt 0:00:17]}
Qxe3+ {[%emt 0:00:04]} 37. Kxe3 {[%emt 0:00:22]} Kg6 {[%emt 0:00:03]} 38. Bh2 {
[%emt 0:01:47]} Re8 {[%emt 0:00:28]} 39. Bd1 {[%emt 0:00:43]} Rc8 {[%emt 0:00:
00]} 40. Bxe5 {[%emt 0:01:49]} Rxc4 {[%emt 0:00:07]} 41. Bd4 {[%emt 0:30:52]}
g3 {[%emt 0:06:05]} 42. Rg1 {[%emt 0:00:00]} h5 {[%emt 0:09:25]} 43. Rxg3 {
[%emt 0:00:00]} Rc8 {[%emt 0:00:02]} 44. Kf2 {[%emt 0:00:00]} Be4 {[%emt 0:00:
00]} 45. Bf3 {[%emt 0:00:00]} Bb1 {[%emt 0:01:13]} 46. d6 {[%emt 0:00:00]} Rd8
{[%emt 0:01:02]} 47. Rg1 {[%emt 0:00:31]} Bc2 {[%emt 0:07:57]} 48. Be5 {
[%emt 0:00:50]} Kf5 {[%emt 0:00:32]} 49. Re1 {[%emt 0:02:50]} g4 {[%emt 0:00:
00]} 50. Bc6 {[%emt 0:00:15]} Kg5 {[%emt 0:01:10]} 51. d7 {[%emt 0:00:40]} h4 {
[%emt 0:00:35]} 52. Bc7 {[%emt 0:00:16]} Rf8+ {[%emt 0:00:05]} 53. Kg1 {
[%emt 0:00:09]} 1-0

[Event "44th Chess Olympiad Women 2022"]
[Site "Chennai"]
[Date "2022.07.31"]
[Round "3.11"]
[White "Gomes, Mary Ann"]
[Black "Citra, Dewi Ardhiani Anast"]
[Result "1/2-1/2"]
[WhiteElo "2324"]
[BlackElo "2257"]
[Annotator "RC"]
[PlyCount "85"]
[EventDate "2022.??.??"]
[TimeControl "60"]

1. Nf3 {[%emt 0:00:17]} d5 {[%emt 0:00:38]} 2. g3 {[%emt 0:00:30]} Nc6 {
[%emt 0:00:30]} 3. d4 {[%emt 0:00:16]} Bg4 {[%emt 0:00:00]} 4. Bg2 {[%emt 0:00:
00]} Bxf3 {[%emt 0:00:01]} 5. exf3 {[%emt 0:00:43]} e6 {[%emt 0:02:11]} 6. f4 {
[%emt 0:01:17]} Nf6 {[%emt 0:00:27]} 7. c3 {[%emt 0:00:10]} Bd6 {[%emt 0:01:32]
} 8. Nd2 {[%emt 0:00:08]} Ne7 {[%emt 0:04:19]} 9. Nf3 {[%emt 0:00:42]} h5 {
[%emt 0:01:39]} 10. h3 {[%emt 0:02:34]} c5 {[%emt 0:03:21]} 11. Qa4+ {[%emt 0:
00:00]} Qd7 {[%emt 0:01:56]} 12. Qxd7+ {[%emt 0:00:17]} Nxd7 {[%emt 0:00:36]}
13. dxc5 {[%emt 0:04:55]} Nxc5 {[%emt 0:01:31]} 14. Ke2 {[%emt 0:00:12]} Na4 {
[%emt 0:19:50]} 15. Rb1 {[%emt 0:03:20]} Rc8 {[%emt 0:07:35]} 16. Bd2 {[%emt 0:
00:00]} O-O {[%emt 0:05:16]} 17. Nd4 {[%emt 0:01:32]} Nc6 {[%emt 0:02:46]} 18.
Nb5 {[%emt 0:03:13]} Bc5 {[%emt 0:04:06]} 19. b3 {[%emt 0:01:29]} Nb6 {[%emt 0:
00:00]} 20. Be3 {[%emt 0:04:30]} Bxe3 {[%emt 0:00:16]} 21. fxe3 {[%emt 0:04:37]
} a6 {[%emt 0:01:23]} 22. Nd6 {[%emt 0:09:29]} Rc7 {[%emt 0:04:04]} 23. c4 {
[%emt 0:00:28]} Ne7 {[%emt 0:24:18]} 24. Rhc1 {[%emt 0:05:53]} Nec8 {[%emt 0:
00:00]} 25. Nxc8 {[%emt 0:19:08]} Rfxc8 {[%emt 0:00:06]} 26. Bf3 {[%emt 0:00:
00]} Kf8 {[%emt 0:02:56]} 27. Kf2 {[%emt 0:04:43]} Ke7 {[%emt 0:02:34]} 28. Rd1
{[%emt 0:01:46]} Rc5 {[%emt 0:02:28]} 29. Rd2 {[%emt 0:03:17]} R8c7 {[%emt 0:
00:00]} 30. cxd5 {[%emt 0:00:21]} Nxd5 {[%emt 0:00:12]} 31. Bxd5 {[%emt 0:00:
00]} Rxd5 {[%emt 0:00:08]} 32. Rxd5 {[%emt 0:03:45]} Rc2+ {[%emt 0:00:21]} 33.
Kf3 {[%emt 0:01:58]} exd5 {[%emt 0:00:07]} 34. a4 {[%emt 0:00:23]} Kd6 {
[%emt 0:02:10]} 35. b4 {[%emt 0:01:39]} Ra2 {[%emt 0:00:41]} 36. a5 {[%emt 0:
00:00]} Ra3 {[%emt 0:00:15]} 37. Kf2 {[%emt 0:03:24]} g6 {[%emt 0:00:19]} 38.
g4 {[%emt 0:00:12]} hxg4 {[%emt 0:01:22]} 39. hxg4 {[%emt 0:00:06]} Ra2+ {
[%emt 0:00:23]} 40. Kf3 {[%emt 0:00:27]} Ra3 {[%emt 0:00:09]} 41. Kf2 {[%emt 0:
00:00]} Ra4 {[%emt 0:30:28]} 42. Ke2 {[%emt 0:02:54]} Ra3 {[%emt 0:00:20]} 43.
Kf2 {[%emt 0:01:28]} 1/2-1/2

[Event "44th Chess Olympiad Women 2022"]
[Site "Chennai"]
[Date "2022.07.31"]
[Round "3.11"]
[White "Mariroh, Fariha"]
[Black "Soumya, Swaminathan"]
[Result "0-1"]
[WhiteElo "1839"]
[BlackElo "2335"]
[Annotator "RC"]
[PlyCount "149"]
[EventDate "2022.??.??"]
[TimeControl "60"]

1. e4 {[%emt 0:00:02]} c5 {[%emt 0:00:03]} 2. Nf3 {[%emt 0:00:06]} Nc6 {
[%emt 0:00:18]} 3. d4 {[%emt 0:00:07]} cxd4 {[%emt 0:00:03]} 4. Nxd4 {[%emt 0:
00:00]} Nf6 {[%emt 0:00:06]} 5. Nc3 {[%emt 0:00:07]} d6 {[%emt 0:00:05]} 6. Bg5
{[%emt 0:00:26]} e6 {[%emt 0:00:16]} 7. Qd2 {[%emt 0:00:08]} a6 {[%emt 0:00:05]
} 8. O-O-O {[%emt 0:00:09]} Bd7 {[%emt 0:00:22]} 9. f4 {[%emt 0:00:14]} Be7 {
[%emt 0:00:07]} 10. Nf3 {[%emt 0:00:33]} b5 {[%emt 0:00:28]} 11. Bxf6 {[%emt 0:
00:00]} gxf6 {[%emt 0:00:03]} 12. f5 {[%emt 0:00:19]} Qb6 {[%emt 0:03:34]} 13.
Qh6 {[%emt 0:01:55]} O-O-O {[%emt 0:03:04]} 14. Qh5 {[%emt 0:02:17]} Rdf8 {
[%emt 0:02:15]} 15. Kb1 {[%emt 0:01:28]} Ne5 {[%emt 0:23:13]} 16. Bd3 {[%emt 0:
00:00]} Bd8 {[%emt 0:09:32]} 17. Rhe1 {[%emt 0:11:26]} Qc5 {[%emt 0:07:20]} 18.
Nd2 {[%emt 0:15:19]} Rfg8 {[%emt 0:12:20]} 19. Nb3 {[%emt 0:14:05]} Qb6 {
[%emt 0:00:08]} 20. Rd2 {[%emt 0:13:44]} Kb8 {[%emt 0:06:48]} 21. Bf1 {[%emt 0:
00:00]} Rg5 {[%emt 0:02:59]} 22. Qd1 {[%emt 0:02:07]} Bc7 {[%emt 0:00:27]} 23.
a3 {[%emt 0:03:03]} h5 {[%emt 0:01:29]} 24. Nd4 {[%emt 0:01:37]} Bc8 {[%emt 0:
00:00]} 25. Nf3 {[%emt 0:01:30]} Rgg8 {[%emt 0:02:23]} 26. Nxe5 {[%emt 0:01:21]
} dxe5 {[%emt 0:00:39]} 27. fxe6 {[%emt 0:03:25]} fxe6 {[%emt 0:00:21]} 28. Qf3
{[%emt 0:01:29]} Bd8 {[%emt 0:01:33]} 29. Red1 {[%emt 0:01:32]} Be7 {[%emt 0:
00:00]} 30. g3 {[%emt 0:03:11]} h4 {[%emt 0:02:45]} 31. g4 {[%emt 0:00:16]} Rd8
{[%emt 0:02:39]} 32. Qh3 {[%emt 0:04:22]} Rxd2 {[%emt 0:05:05]} 33. Rxd2 {
[%emt 0:00:07]} Bc5 {[%emt 0:00:35]} 34. Qf3 {[%emt 0:00:40]} Rd8 {[%emt 0:00:
00]} 35. Qd1 {[%emt 0:01:49]} Rxd2 {[%emt 0:06:46]} 36. Qxd2 {[%emt 0:00:01]}
Be3 {[%emt 0:00:09]} 37. Qe1 {[%emt 0:01:04]} Bg5 {[%emt 0:02:29]} 38. Bd3 {
[%emt 0:00:21]} Bb7 {[%emt 0:00:51]} 39. Nd1 {[%emt 0:02:20]} Qd4 {[%emt 0:00:
00]} 40. Qf2 {[%emt 0:02:13]} Kc7 {[%emt 0:01:18]} 41. h3 {[%emt 0:34:21]} Bc6
{[%emt 0:30:34]} 42. Ka2 {[%emt 0:00:38]} a5 {[%emt 0:00:00]} 43. Qe1 {[%emt 0:
00:00]} Kb6 {[%emt 0:00:00]} 44. Qf2 {[%emt 0:00:00]} Kc5 {[%emt 0:00:00]} 45.
c3 {[%emt 0:00:00]} Qxf2 {[%emt 0:00:00]} 46. Nxf2 {[%emt 0:00:00]} Kd6 {
[%emt 0:00:00]} 47. Kb3 {[%emt 0:00:00]} Be3 {[%emt 0:00:00]} 48. Nd1 {[%emt 0:
00:00]} Bc5 {[%emt 0:00:07]} 49. Kc2 {[%emt 0:00:00]} f5 {[%emt 0:00:54]} 50.
b4 {[%emt 0:00:00]} axb4 {[%emt 0:00:49]} 51. axb4 {[%emt 0:00:00]} Bb6 {
[%emt 0:01:06]} 52. exf5 {[%emt 0:00:00]} e4 {[%emt 0:00:39]} 53. Be2 {[%emt 0:
00:00]} exf5 {[%emt 0:00:25]} 54. gxf5 {[%emt 0:00:56]} Ke5 {[%emt 0:00:03]}
55. Bg4 {[%emt 0:01:09]} Bd5 {[%emt 0:01:30]} 56. Kd2 {[%emt 0:02:05]} Kf4 {
[%emt 0:00:14]} 57. Nb2 {[%emt 0:00:56]} Bd8 {[%emt 0:01:21]} 58. Be2 {[%emt 0:
00:00]} Bc6 {[%emt 0:00:35]} 59. c4 {[%emt 0:00:41]} bxc4 {[%emt 0:01:20]} 60.
Nxc4 {[%emt 0:01:02]} Be7 {[%emt 0:00:15]} 61. Kc3 {[%emt 0:01:08]} Bd7 {
[%emt 0:00:47]} 62. Nb6 {[%emt 0:00:34]} Bf6+ {[%emt 0:00:29]} 63. Kc4 {
[%emt 0:00:34]} Bxf5 {[%emt 0:00:14]} 64. Nd5+ {[%emt 0:00:40]} Ke5 {[%emt 0:
00:00]} 65. Nxf6 {[%emt 0:00:45]} Kxf6 {[%emt 0:00:07]} 66. Bf1 {[%emt 0:00:51]
} Ke5 {[%emt 0:01:31]} 67. b5 {[%emt 0:00:21]} e3 {[%emt 0:00:11]} 68. b6 {
[%emt 0:00:36]} Be4 {[%emt 0:00:03]} 69. Be2 {[%emt 0:00:40]} Kf4 {[%emt 0:00:
00]} 70. Kd4 {[%emt 0:00:18]} Bb7 {[%emt 0:00:28]} 71. Kc3 {[%emt 0:00:54]} Kg3
{[%emt 0:00:42]} 72. Bf1 {[%emt 0:00:24]} Kf2 {[%emt 0:00:16]} 73. Bc4 {
[%emt 0:00:32]} e2 {[%emt 0:00:08]} 74. Bxe2 {[%emt 0:00:27]} Kxe2 {[%emt 0:00:
00]} 75. Kd4 {[%emt 0:00:24]} 0-1

[Event "44th Chess Olympiad Women 2022"]
[Site "Chennai"]
[Date "2022.07.31"]
[Round "3.11"]
[White "Padmini, Rout"]
[Black "Aulia, Medina Warda"]
[Result "1/2-1/2"]
[WhiteElo "2374"]
[BlackElo "2374"]
[Annotator "RC"]
[PlyCount "116"]
[EventDate "2022.??.??"]
[TimeControl "60"]

1. e4 {[%emt 0:00:04]} e6 {[%emt 0:00:06]} 2. d4 {[%emt 0:00:11]} d5 {[%emt 0:
00:00]} 3. Nc3 {[%emt 0:00:11]} Bb4 {[%emt 0:00:07]} 4. e5 {[%emt 0:00:19]} c5
{[%emt 0:00:07]} 5. a3 {[%emt 0:00:05]} Bxc3+ {[%emt 0:00:09]} 6. bxc3 {
[%emt 0:00:03]} Ne7 {[%emt 0:00:11]} 7. Qg4 {[%emt 0:00:33]} cxd4 {[%emt 0:00:
00]} 8. Bd3 {[%emt 0:04:44]} Qc7 {[%emt 0:02:24]} 9. Ne2 {[%emt 0:00:43]} dxc3
{[%emt 0:02:01]} 10. Qxg7 {[%emt 0:27:53]} Rg8 {[%emt 0:00:21]} 11. Qxh7 {
[%emt 0:00:11]} Qxe5 {[%emt 0:00:26]} 12. Bf4 {[%emt 0:27:02]} Qf6 {[%emt 0:00:
00]} 13. h4 {[%emt 0:00:17]} Nd7 {[%emt 0:00:35]} 14. Bg5 {[%emt 0:03:03]} Qh8
{[%emt 0:00:14]} 15. Qxh8 {[%emt 0:01:51]} Rxh8 {[%emt 0:00:05]} 16. Nxc3 {
[%emt 0:01:26]} a6 {[%emt 0:02:24]} 17. f3 {[%emt 0:06:15]} f6 {[%emt 0:03:08]}
18. Bd2 {[%emt 0:00:55]} b5 {[%emt 0:03:31]} 19. Kf2 {[%emt 0:03:56]} Kf7 {
[%emt 0:00:33]} 20. g4 {[%emt 0:01:22]} Bb7 {[%emt 0:00:58]} 21. g5 {[%emt 0:
00:00]} Nc5 {[%emt 0:05:04]} 22. gxf6 {[%emt 0:04:22]} Kxf6 {[%emt 0:03:04]}
23. Ne2 {[%emt 0:00:17]} e5 {[%emt 0:04:12]} 24. Bg5+ {[%emt 0:01:15]} Kf7 {
[%emt 0:02:49]} 25. Ng3 {[%emt 0:00:41]} Raf8 {[%emt 0:11:03]} 26. Rae1 {
[%emt 0:02:33]} Nxd3+ {[%emt 0:00:52]} 27. cxd3 {[%emt 0:00:08]} Nc6 {[%emt 0:
00:00]} 28. Ne2 {[%emt 0:02:05]} Kg6 {[%emt 0:13:34]} 29. Kg3 {[%emt 0:00:26]}
Re8 {[%emt 0:03:22]} 30. f4 {[%emt 0:01:51]} e4 {[%emt 0:06:07]} 31. f5+ {
[%emt 0:00:40]} Kxf5 {[%emt 0:06:01]} 32. Rhf1+ {[%emt 0:00:06]} Ke6 {[%emt 0:
00:00]} 33. dxe4 {[%emt 0:00:35]} dxe4 {[%emt 0:15:38]} 34. Rd1 {[%emt 0:01:27]
} e3 {[%emt 0:00:19]} 35. Nf4+ {[%emt 0:01:17]} Kf5 {[%emt 0:00:17]} 36. Nd5+ {
[%emt 0:00:22]} Kg6 {[%emt 0:00:30]} 37. Nxe3 {[%emt 0:00:20]} Ne5 {[%emt 0:00:
00]} 38. Rd6+ {[%emt 0:00:04]} Kh7 {[%emt 0:00:25]} 39. Rc1 {[%emt 0:00:53]}
Rhf8 {[%emt 0:02:36]} 40. Rc7+ {[%emt 0:01:20]} Rf7 {[%emt 0:00:04]} 41. Rxf7+
{[%emt 0:02:36]} Nxf7 {[%emt 0:02:25]} 42. Rd7 {[%emt 0:01:40]} Kg6 {[%emt 0:
00:00]} 43. Bf4 {[%emt 0:02:19]} Bc8 {[%emt 0:04:16]} 44. Ra7 {[%emt 0:02:47]}
Rg8 {[%emt 0:11:39]} 45. Nd5 {[%emt 0:07:20]} Rd8 {[%emt 0:08:36]} 46. Ne7+ {
[%emt 0:03:40]} Kf6 {[%emt 0:00:03]} 47. Nxc8 {[%emt 0:00:17]} Rxc8 {[%emt 0:
00:00]} 48. Rxa6+ {[%emt 0:00:26]} Kf5 {[%emt 0:00:02]} 49. Bd2 {[%emt 0:01:00]
} Rd8 {[%emt 0:04:22]} 50. Bb4 {[%emt 0:01:33]} Ne5 {[%emt 0:00:25]} 51. h5 {
[%emt 0:02:15]} Rg8+ {[%emt 0:00:36]} 52. Kf2 {[%emt 0:05:39]} Rh8 {[%emt 0:00:
00]} 53. Rb6 {[%emt 0:01:02]} Rxh5 {[%emt 0:00:06]} 54. Rxb5 {[%emt 0:00:06]}
Ke4 {[%emt 0:00:10]} 55. Ke2 {[%emt 0:00:48]} Nd3 {[%emt 0:03:55]} 56. Rxh5 {
[%emt 0:00:54]} Nf4+ {[%emt 0:00:03]} 57. Kd2 {[%emt 0:00:03]} Nxh5 {[%emt 0:
00:00]} 58. Kc3 {[%emt 0:00:28]} Kd5 {[%emt 0:00:03]} 1/2-1/2

[Event "44th Chess Olympiad Women 2022"]
[Site "Chennai"]
[Date "2022.07.31"]
[Round "3.11"]
[White "Sukandar, Irine Kharisma"]
[Black "Vantika Agrawal"]
[Result "0-1"]
[WhiteElo "2373"]
[BlackElo "2371"]
[Annotator "RC"]
[PlyCount "90"]
[EventDate "2022.??.??"]
[TimeControl "60"]

1. e4 c5 2. Nf3 d6 3. d4 cxd4 4. Nxd4 Nf6 5. Nc3 a6 6. f3 e5 7. Nb3 Be7 8. Be3
Be6 9. Qd2 h5 10. O-O-O Nbd7 11. Kb1 Rc8 12. h3 b5 13. Bd3 h4 14. f4 O-O 15. f5
Bc4 16. g4 hxg3 17. Rhg1 Nh5 18. Ne2 Bh4 19. Bxc4 bxc4 20. Nbc1 Ndf6 21. Nc3
Qa5 22. N1e2 Rb8 23. Ka1 Qb4 24. Rb1 Qb7 25. Bg5 Nxe4 26. Nxe4 Qxe4 27. Bxh4
Qxh4 28. Rbf1 c3 29. Nxc3 Qb4 30. Rb1 Rfc8 31. Qd3 Qd4 32. Rbd1 Qb4 33. Rb1 Qd4
34. Rbd1 Qxd3 35. Rxd3 Rc6 36. Kb1 Kf8 37. Ne4 Nf4 38. Rxd6 Rxd6 39. Nxd6 Rd8
40. Nb7 Rd2 41. c4 g2 42. c5 Rf2 43. c6 Rf1+ 44. Kc2 Rxg1 45. c7 Rc1+ 0-1

[Event "44th Chess Olympiad Women 2022"]
[Site "Chennai"]
[Date "2022.07.31"]
[Round "3.12"]
[White "Chirivi C, Jenny Astrid"]
[Black "Gara, Ticia"]
[Result "1/2-1/2"]
[WhiteElo "2157"]
[BlackElo "2367"]
[Annotator "RC"]
[PlyCount "141"]
[EventDate "2022.??.??"]
[TimeControl "60"]

1. d4 {[%emt 0:00:06]} Nf6 {[%emt 0:00:05]} 2. c4 {[%emt 0:00:10]} e6 {[%emt 0:
00:00]} 3. Nc3 {[%emt 0:00:18]} Bb4 {[%emt 0:00:23]} 4. Qc2 {[%emt 0:00:26]}
O-O {[%emt 0:00:26]} 5. a3 {[%emt 0:00:34]} Bxc3+ {[%emt 0:00:21]} 6. Qxc3 {
[%emt 0:00:17]} b6 {[%emt 0:00:32]} 7. Bg5 {[%emt 0:00:53]} Bb7 {[%emt 0:00:42]
} 8. f3 {[%emt 0:00:51]} h6 {[%emt 0:00:21]} 9. Bh4 {[%emt 0:01:26]} d5 {
[%emt 0:02:09]} 10. cxd5 {[%emt 0:06:05]} exd5 {[%emt 0:06:46]} 11. e3 {
[%emt 0:01:07]} Re8 {[%emt 0:00:34]} 12. Be2 {[%emt 0:02:56]} Nbd7 {[%emt 0:00:
00]} 13. Nh3 {[%emt 0:02:50]} Qe7 {[%emt 0:04:54]} 14. Bf2 {[%emt 0:02:43]} c5
{[%emt 0:00:44]} 15. O-O {[%emt 0:03:29]} Rac8 {[%emt 0:06:38]} 16. Rfe1 {
[%emt 0:12:11]} Nf8 {[%emt 0:18:30]} 17. Qd2 {[%emt 0:17:36]} c4 {[%emt 0:00:
00]} 18. Rac1 {[%emt 0:04:59]} Bc6 {[%emt 0:10:34]} 19. Bd1 {[%emt 0:08:15]}
Bd7 {[%emt 0:14:47]} 20. Nf4 {[%emt 0:00:32]} g5 {[%emt 0:04:09]} 21. Ne2 {
[%emt 0:02:32]} Bf5 {[%emt 0:02:40]} 22. Ng3 {[%emt 0:04:25]} Bg6 {[%emt 0:00:
00]} 23. Ba4 {[%emt 0:04:18]} Red8 {[%emt 0:02:09]} 24. Bc2 {[%emt 0:02:17]}
Qd7 {[%emt 0:01:14]} 25. Kh1 {[%emt 0:03:22]} b5 {[%emt 0:04:03]} 26. e4 {
[%emt 0:02:22]} dxe4 {[%emt 0:00:38]} 27. fxe4 {[%emt 0:00:46]} Ng4 {[%emt 0:
00:00]} 28. Bg1 {[%emt 0:00:57]} Ne6 {[%emt 0:00:11]} 29. Ne2 {[%emt 0:10:34]}
Nf6 {[%emt 0:03:03]} 30. Qe3 {[%emt 0:00:47]} Qb7 {[%emt 0:01:12]} 31. d5 {
[%emt 0:01:10]} Nc5 {[%emt 0:00:23]} 32. Ng3 {[%emt 0:00:16]} Re8 {[%emt 0:00:
00]} 33. Qf3 {[%emt 0:01:04]} Nfd7 {[%emt 0:01:20]} 34. Nh5 {[%emt 0:01:23]}
Qb6 {[%emt 0:01:28]} 35. Bd4 {[%emt 0:01:03]} Bxh5 {[%emt 0:00:25]} 36. Qxh5 {
[%emt 0:00:06]} Ne5 {[%emt 0:00:12]} 37. Rf1 {[%emt 0:00:45]} Qg6 {[%emt 0:00:
00]} 38. Qxg6+ {[%emt 0:01:40]} Nxg6 {[%emt 0:00:18]} 39. Rce1 {[%emt 0:00:34]}
Nf4 {[%emt 0:01:13]} 40. g3 {[%emt 0:01:28]} Nfd3 {[%emt 0:00:29]} 41. Bxd3 {
[%emt 0:30:29]} cxd3 {[%emt 0:05:32]} 42. e5 {[%emt 0:00:00]} Nb3 {[%emt 0:00:
00]} 43. Bc3 {[%emt 0:00:00]} Rc5 {[%emt 0:01:01]} 44. e6 {[%emt 0:00:00]} fxe6
{[%emt 0:00:14]} 45. Rxe6 {[%emt 0:00:00]} Rxe6 {[%emt 0:00:42]} 46. dxe6 {
[%emt 0:00:00]} d2 {[%emt 0:06:09]} 47. e7 {[%emt 0:00:00]} Rc8 {[%emt 0:00:10]
} 48. Rd1 {[%emt 0:00:00]} Kf7 {[%emt 0:01:09]} 49. Bxd2 {[%emt 0:00:00]} Nxd2
{[%emt 0:00:24]} 50. Rxd2 {[%emt 0:00:00]} Kxe7 {[%emt 0:00:09]} 51. h3 {
[%emt 0:00:00]} Ke6 {[%emt 0:00:45]} 52. Kg2 {[%emt 0:00:00]} Ke5 {[%emt 0:00:
00]} 53. Kf3 {[%emt 0:00:00]} Rc4 {[%emt 0:01:24]} 54. Rd7 {[%emt 0:00:50]} Rc2
{[%emt 0:00:48]} 55. Rxa7 {[%emt 0:00:20]} Rxb2 {[%emt 0:00:06]} 56. Kg4 {
[%emt 0:02:05]} Kf6 {[%emt 0:05:17]} 57. Ra6+ {[%emt 0:01:05]} Kg7 {[%emt 0:00:
00]} 58. Kh5 {[%emt 0:01:17]} Rb3 {[%emt 0:01:49]} 59. Kg4 {[%emt 0:02:31]} h5+
{[%emt 0:00:33]} 60. Kxg5 {[%emt 0:00:41]} Rxg3+ {[%emt 0:00:03]} 61. Kxh5 {
[%emt 0:00:35]} Rxh3+ {[%emt 0:00:03]} 62. Kg5 {[%emt 0:00:19]} Rb3 {[%emt 0:
00:00]} 63. Ra7+ {[%emt 0:00:08]} Kf8 {[%emt 0:00:08]} 64. Kf6 {[%emt 0:00:35]}
Ke8 {[%emt 0:00:05]} 65. Ke6 {[%emt 0:00:05]} Kd8 {[%emt 0:00:07]} 66. Kd6 {
[%emt 0:00:06]} Kc8 {[%emt 0:00:05]} 67. Kc6 {[%emt 0:00:21]} Kb8 {[%emt 0:00:
00]} 68. Rb7+ {[%emt 0:00:28]} Kc8 {[%emt 0:00:27]} 69. Rxb5 {[%emt 0:00:38]}
Rxa3 {[%emt 0:00:04]} 70. Kc5 {[%emt 0:00:19]} Kc7 {[%emt 0:00:04]} 71. Kd5 {
[%emt 0:00:09]} 1/2-1/2